[Event "*** SCC Grand Prix: Titled Tuesday Blitz"]
[Site "Chess.com"]
[Date "2020.06.09"]
[Round "1"]
[White "Sanan_Sjugirov"]
[Black "amatatanav"]
[Result "1-0"]
[WhiteElo "2784"]
[BlackElo "2413"]
[TimeControl "180+1"]
[EndTime "9:06:36 PDT"]
[Termination "Sanan_Sjugirov won on time"]

1. e4 {[%clk 0:03:00.9]} 1... c5 {[%clk 0:02:59.7]} 2. Nf3 {[%clk 0:03:00.7]}
2... Nc6 {[%clk 0:03:00]} 3. Bb5 {[%clk 0:03:00.2]} 3... e6 {[%clk 0:03:00.1]}
4. O-O {[%clk 0:02:57.3]} 4... Nge7 {[%clk 0:03:00]} 5. c3 {[%clk 0:02:57.4]}
5... a6 {[%clk 0:02:59.7]} 6. Bxc6 {[%clk 0:02:57.5]} 6... Nxc6 {[%clk
0:02:54.4]} 7. d4 {[%clk 0:02:56.8]} 7... d5 {[%clk 0:02:27.7]} 8. Bg5 {[%clk
0:02:54.9]} 8... f6 {[%clk 0:02:13.8]} 9. exd5 {[%clk 0:02:53.1]} 9... Qxd5
{[%clk 0:02:11.7]} 10. Be3 {[%clk 0:02:49.6]} 10... c4 {[%clk 0:01:50.7]} 11.
Nbd2 {[%clk 0:02:37.9]} 11... b5 {[%clk 0:01:47.4]} 12. b3 {[%clk 0:02:28.1]}
12... Na5 {[%clk 0:01:24.3]} 13. bxc4 {[%clk 0:02:24.6]} 13... Nxc4 {[%clk
0:01:24.3]} 14. Nxc4 {[%clk 0:02:24.2]} 14... Qxc4 {[%clk 0:01:25.2]} 15. a4
{[%clk 0:02:06]} 15... Bb7 {[%clk 0:01:05.4]} 16. Nd2 {[%clk 0:01:32.7]} 16...
Qc6 {[%clk 0:01:02.9]} 17. Qg4 {[%clk 0:01:27.6]} 17... Be7 {[%clk 0:00:47.8]}
18. axb5 {[%clk 0:01:20]} 18... axb5 {[%clk 0:00:33.8]} 19. Rxa8+ {[%clk
0:01:19]} 19... Bxa8 {[%clk 0:00:34.7]} 20. Qxg7 {[%clk 0:01:16]} 20... Bf8
{[%clk 0:00:21.8]} 21. Qg4 {[%clk 0:01:01]} 21... h5 {[%clk 0:00:20.4]} 22. Qg6+
{[%clk 0:01:00.4]} 22... Kd7 {[%clk 0:00:14]} 23. Ra1 {[%clk 0:00:48.7]} 23...
Be7 {[%clk 0:00:07]} 24. Nf3 {[%clk 0:00:40.9]} 24... h4 {[%clk 0:00:03.8]} 25.
h3 {[%clk 0:00:39.7]} 25... Bb7 {[%clk 0:00:01.7]} 26. Qg7 {[%clk 0:00:31.4]}
1-0

[Event "*** SCC Grand Prix: Titled Tuesday Blitz"]
[Site "Chess.com"]
[Date "2020.06.09"]
[Round "1"]
[White "Kopytkin"]
[Black "novendrapriasmoro"]
[Result "0-1"]
[WhiteElo "2346"]
[BlackElo "2669"]
[TimeControl "180+1"]
[EndTime "9:06:36 PDT"]
[Termination "novendrapriasmoro won on time"]

1. e4 {[%clk 0:03:00.9]} 1... c5 {[%clk 0:02:59.9]} 2. d4 {[%clk 0:02:59.2]}
2... cxd4 {[%clk 0:02:59.7]} 3. c3 {[%clk 0:02:59.5]} 3... dxc3 {[%clk
0:02:59.9]} 4. Nxc3 {[%clk 0:02:59.1]} 4... e6 {[%clk 0:03:00]} 5. Nf3 {[%clk
0:02:56.7]} 5... a6 {[%clk 0:03:00]} 6. Bc4 {[%clk 0:02:55.9]} 6... b5 {[%clk
0:02:59.5]} 7. Bb3 {[%clk 0:02:56.2]} 7... Bb7 {[%clk 0:02:59.9]} 8. O-O {[%clk
0:02:56.2]} 8... b4 {[%clk 0:03:00]} 9. Nd5 {[%clk 0:02:56.3]} 9... exd5 {[%clk
0:02:58.2]} 10. exd5 {[%clk 0:02:56.3]} 10... Bd6 {[%clk 0:02:55.6]} 11. Re1+
{[%clk 0:02:23.5]} 11... Ne7 {[%clk 0:02:55.1]} 12. Ng5 {[%clk 0:02:05.7]} 12...
O-O {[%clk 0:02:44.5]} 13. Qh5 {[%clk 0:01:53.6]} 13... h6 {[%clk 0:02:42.8]}
14. Ne4 {[%clk 0:01:53.6]} 14... Be5 {[%clk 0:02:38.1]} 15. Qxe5 {[%clk
0:01:28.4]} 15... Ng6 {[%clk 0:02:37.9]} 16. Qh5 {[%clk 0:01:20.6]} 16... d6
{[%clk 0:02:33.6]} 17. Bg5 {[%clk 0:01:06.8]} 17... hxg5 {[%clk 0:02:00.8]} 18.
Nxg5 {[%clk 0:01:05.5]} 18... Re8 {[%clk 0:02:01.1]} 19. Bc2 {[%clk 0:00:54.1]}
19... Re5 {[%clk 0:01:23]} 20. Nxf7 {[%clk 0:00:15.3]} 20... Rxh5 {[%clk
0:01:16.5]} 21. Nxd8 {[%clk 0:00:15.2]} 21... Nf8 {[%clk 0:01:12.1]} 22. Nxb7
{[%clk 0:00:14.7]} 22... Nbd7 {[%clk 0:01:11.7]} 23. Nxd6 {[%clk 0:00:14.8]}
23... Rd8 {[%clk 0:01:08]} 24. Ne4 {[%clk 0:00:11.2]} 24... Nb6 {[%clk 0:01:08]}
25. Rad1 {[%clk 0:00:10.5]} 25... a5 {[%clk 0:01:07.7]} 26. d6 {[%clk
0:00:10.8]} 26... a4 {[%clk 0:01:07.7]} 27. Rd4 {[%clk 0:00:07.4]} 27... Rd5
{[%clk 0:01:06.4]} 28. Red1 {[%clk 0:00:07]} 28... Rb5 {[%clk 0:01:02.3]} 29.
Bd3 {[%clk 0:00:06.5]} 29... Re5 {[%clk 0:00:59]} 30. f3 {[%clk 0:00:04.8]}
30... b3 {[%clk 0:00:57.5]} 31. axb3 {[%clk 0:00:04.4]} 31... axb3 {[%clk
0:00:58.4]} 32. Rb4 {[%clk 0:00:04.7]} 32... Nbd7 {[%clk 0:00:58.1]} 33. Rxb3
{[%clk 0:00:03.5]} 33... Kh7 {[%clk 0:00:57.5]} 34. Rb7 {[%clk 0:00:03.6]} 34...
Kh6 {[%clk 0:00:55.7]} 35. g4 {[%clk 0:00:03.1]} 35... Ne6 {[%clk 0:00:55.9]}
0-1

[Event "*** SCC Grand Prix: Titled Tuesday Blitz"]
[Site "Chess.com"]
[Date "2020.06.09"]
[Round "1"]
[White "pitterson"]
[Black "Borsuk_Konstantin"]
[Result "1-0"]
[WhiteElo "2351"]
[BlackElo "2559"]
[TimeControl "180+1"]
[EndTime "9:06:36 PDT"]
[Termination "pitterson won on time"]

1. d4 {[%clk 0:03:00.9]} 1... Nf6 {[%clk 0:02:59.1]} 2. c4 {[%clk 0:02:59.9]}
2... e6 {[%clk 0:02:58.7]} 3. g3 {[%clk 0:02:59.3]} 3... Bb4+ {[%clk 0:02:56.4]}
4. Bd2 {[%clk 0:02:58.8]} 4... Qe7 {[%clk 0:02:55]} 5. Bg2 {[%clk 0:02:58.2]}
5... O-O {[%clk 0:02:53.9]} 6. Nc3 {[%clk 0:02:57.3]} 6... d6 {[%clk 0:02:45.8]}
7. a3 {[%clk 0:02:51.5]} 7... Bxc3 {[%clk 0:02:44.4]} 8. Bxc3 {[%clk 0:02:50.3]}
8... e5 {[%clk 0:02:37.2]} 9. e3 {[%clk 0:02:39.4]} 9... c6 {[%clk 0:01:53.4]}
10. Ne2 {[%clk 0:02:37.1]} 10... e4 {[%clk 0:01:48.4]} 11. d5 {[%clk 0:02:23]}
11... Bg4 {[%clk 0:01:10.8]} 12. O-O {[%clk 0:02:18.7]} 12... cxd5 {[%clk
0:00:49.9]} 13. cxd5 {[%clk 0:02:08.3]} 13... Nbd7 {[%clk 0:00:42.9]} 14. h3
{[%clk 0:01:42.8]} 14... Bf3 {[%clk 0:00:25.8]} 15. Qd2 {[%clk 0:01:31.5]} 15...
Ne5 {[%clk 0:00:23.9]} 16. Bxe5 {[%clk 0:01:22.8]} 16... Qxe5 {[%clk 0:00:23.1]}
17. Nf4 {[%clk 0:01:22.6]} 17... g5 {[%clk 0:00:21.9]} 18. Bxf3 {[%clk
0:01:16.7]} 18... exf3 {[%clk 0:00:17.7]} 19. Nd3 {[%clk 0:01:12.2]} 19... Qxd5
{[%clk 0:00:12.5]} 20. Rfd1 {[%clk 0:01:10.6]} 20... Ne4 {[%clk 0:00:11.9]} 21.
Qb4 {[%clk 0:01:07.5]} 21... f5 {[%clk 0:00:11.6]} 22. Nf4 {[%clk 0:01:01]}
22... Qf7 {[%clk 0:00:11]} 23. Nd5 {[%clk 0:00:55.1]} 23... Rae8 {[%clk
0:00:10.2]} 24. Rac1 {[%clk 0:00:52.2]} 24... Qh5 {[%clk 0:00:09.5]} 25. Qc4
{[%clk 0:00:34.8]} 25... Qxh3 {[%clk 0:00:09.4]} 26. Nf4+ {[%clk 0:00:33.5]} 1-0

[Event "*** SCC Grand Prix: Titled Tuesday Blitz"]
[Site "Chess.com"]
[Date "2020.06.09"]
[Round "1"]
[White "bulletteemo"]
[Black "BJthechessgod"]
[Result "1-0"]
[WhiteElo "2525"]
[BlackElo "2120"]
[TimeControl "180+1"]
[EndTime "9:06:36 PDT"]
[Termination "bulletteemo won on time"]

1. e4 {[%clk 0:02:58.2]} 1... c5 {[%clk 0:02:56]} 2. Nf3 {[%clk 0:02:57.9]} 2...
Nc6 {[%clk 0:02:55.9]} 3. d4 {[%clk 0:02:57.2]} 3... cxd4 {[%clk 0:02:56]} 4.
Nxd4 {[%clk 0:02:57.8]} 4... g6 {[%clk 0:02:56.8]} 5. c4 {[%clk 0:02:57.2]} 5...
Nf6 {[%clk 0:02:56.4]} 6. Nc3 {[%clk 0:02:54.7]} 6... d6 {[%clk 0:02:52.8]} 7.
f3 {[%clk 0:02:53.3]} 7... Nxd4 {[%clk 0:02:51.7]} 8. Qxd4 {[%clk 0:02:52.7]}
8... Bg7 {[%clk 0:02:52.6]} 9. Be2 {[%clk 0:02:50.8]} 9... O-O {[%clk 0:02:53]}
10. Qd3 {[%clk 0:02:49.4]} 10... Be6 {[%clk 0:02:49.6]} 11. O-O {[%clk 0:02:49]}
11... Rc8 {[%clk 0:02:32.8]} 12. b3 {[%clk 0:02:48.4]} 12... a6 {[%clk
0:02:31.2]} 13. a4 {[%clk 0:02:42.6]} 13... Nd7 {[%clk 0:02:28.9]} 14. Be3
{[%clk 0:02:39.4]} 14... Nc5 {[%clk 0:02:27.4]} 15. Qc2 {[%clk 0:02:38.5]} 15...
Qa5 {[%clk 0:02:21.7]} 16. Rac1 {[%clk 0:02:36]} 16... Qb4 {[%clk 0:02:19.2]}
17. Nd5 {[%clk 0:02:23.8]} 17... Bxd5 {[%clk 0:02:17]} 18. exd5 {[%clk
0:02:04.1]} 18... Qxb3 {[%clk 0:02:03.1]} 19. Qxb3 {[%clk 0:02:00.1]} 19... Nxb3
{[%clk 0:02:02.7]} 20. Rb1 {[%clk 0:01:57.6]} 20... Nd4 {[%clk 0:01:51]} 21. Bd3
{[%clk 0:01:54.7]} 21... Rc7 {[%clk 0:01:50.1]} 22. Rfd1 {[%clk 0:01:51.4]}
22... Rfc8 {[%clk 0:01:11.5]} 23. Kf1 {[%clk 0:01:46.3]} 23... Nf5 {[%clk
0:00:54.9]} 24. Bb6 {[%clk 0:01:42.4]} 24... Rd7 {[%clk 0:00:54.6]} 25. g4
{[%clk 0:01:21.2]} 25... Nd4 {[%clk 0:00:49.8]} 26. Kf2 {[%clk 0:01:19.9]} 26...
e5 {[%clk 0:00:44.6]} 27. Re1 {[%clk 0:01:01.7]} 27... Kf8 {[%clk 0:00:31.2]}
28. h4 {[%clk 0:00:54.7]} 28... h5 {[%clk 0:00:20.6]} 29. gxh5 {[%clk
0:00:54.3]} 29... gxh5 {[%clk 0:00:21.1]} 30. Bxd4 {[%clk 0:00:54.6]} 30... exd4
{[%clk 0:00:21]} 31. Bf5 {[%clk 0:00:55.1]} 31... Rdc7 {[%clk 0:00:13.5]} 32.
Bxc8 {[%clk 0:00:54.6]} 32... Rxc8 {[%clk 0:00:14.4]} 33. Rxb7 {[%clk
0:00:53.7]} 33... d3 {[%clk 0:00:10.7]} 34. Ree7 {[%clk 0:00:52.6]} 34... Bd4+
{[%clk 0:00:03]} 35. Ke1 {[%clk 0:00:53.1]} 35... Bc3+ {[%clk 0:00:02.3]} 36.
Kd1 {[%clk 0:00:52.7]} 36... Rxc4 {[%clk 0:00:01.6]} 37. Rxf7+ {[%clk
0:00:53.2]} 37... Ke8 {[%clk 0:00:01.7]} 38. Rfc7 {[%clk 0:00:53.6]} 1-0

[Event "*** SCC Grand Prix: Titled Tuesday Blitz"]
[Site "Chess.com"]
[Date "2020.06.09"]
[Round "1"]
[White "VitaliyBernadskiy"]
[Black "Julianos82"]
[Result "1-0"]
[WhiteElo "2694"]
[BlackElo "2363"]
[TimeControl "180+1"]
[EndTime "9:06:37 PDT"]
[Termination "VitaliyBernadskiy won by resignation"]

1. d4 {[%clk 0:03:00.9]} 1... d5 {[%clk 0:02:59.5]} 2. c4 {[%clk 0:03:00]} 2...
dxc4 {[%clk 0:03:00.4]} 3. e4 {[%clk 0:02:59.6]} 3... Nc6 {[%clk 0:02:59.8]} 4.
Nf3 {[%clk 0:02:53.4]} 4... Bg4 {[%clk 0:02:46]} 5. d5 {[%clk 0:02:52.9]} 5...
Ne5 {[%clk 0:02:42.5]} 6. Bf4 {[%clk 0:02:49.8]} 6... Ng6 {[%clk 0:02:32.8]} 7.
Be3 {[%clk 0:02:49.8]} 7... e5 {[%clk 0:02:26.8]} 8. Bxc4 {[%clk 0:02:48.3]}
8... a6 {[%clk 0:02:26.6]} 9. Nbd2 {[%clk 0:02:47.5]} 9... Nf6 {[%clk
0:02:25.7]} 10. O-O {[%clk 0:02:46.5]} 10... Bd6 {[%clk 0:02:24.9]} 11. h3
{[%clk 0:02:38]} 11... Bd7 {[%clk 0:02:21.6]} 12. Qb3 {[%clk 0:02:37.5]} 12...
Rb8 {[%clk 0:02:14.4]} 13. Rac1 {[%clk 0:02:35.4]} 13... b5 {[%clk 0:01:54.2]}
14. Bd3 {[%clk 0:02:32.8]} 14... O-O {[%clk 0:01:53.5]} 15. Rfe1 {[%clk
0:02:32.6]} 15... Qe7 {[%clk 0:01:49.5]} 16. Nf1 {[%clk 0:02:29.8]} 16... Nh5
{[%clk 0:01:42.5]} 17. Ng3 {[%clk 0:02:29.3]} 17... Nxg3 {[%clk 0:01:31.7]} 18.
fxg3 {[%clk 0:02:30.2]} 18... h6 {[%clk 0:01:19.8]} 19. g4 {[%clk 0:02:28.2]}
19... Rbe8 {[%clk 0:01:12.9]} 20. Qc2 {[%clk 0:02:21.7]} 20... Nh4 {[%clk
0:01:11]} 21. Nh2 {[%clk 0:02:17.6]} 21... Kh7 {[%clk 0:01:02.9]} 22. Qf2 {[%clk
0:02:17.1]} 22... g5 {[%clk 0:00:58.1]} 23. g3 {[%clk 0:02:11.7]} 23... Ng6
{[%clk 0:00:56.7]} 24. Nf3 {[%clk 0:02:12.1]} 24... Rb8 {[%clk 0:00:51.5]} 25.
Nd2 {[%clk 0:02:04.6]} 25... Rfc8 {[%clk 0:00:51.2]} 26. Rf1 {[%clk 0:02:01.9]}
26... Kg7 {[%clk 0:00:49.9]} 27. Bc5 {[%clk 0:01:58.4]} 27... Nf8 {[%clk
0:00:47.1]} 28. Nb3 {[%clk 0:01:56.8]} 28... Ng6 {[%clk 0:00:32.1]} 29. Qe3
{[%clk 0:01:51]} 29... c6 {[%clk 0:00:30.3]} 30. Bxd6 {[%clk 0:01:49.1]} 30...
Qxd6 {[%clk 0:00:31.2]} 31. Qc5 {[%clk 0:01:49.1]} 31... Qxc5+ {[%clk
0:00:31.1]} 32. Nxc5 {[%clk 0:01:50]} 32... Be8 {[%clk 0:00:29.3]} 33. Nxa6
{[%clk 0:01:47.2]} 33... Ra8 {[%clk 0:00:29.6]} 34. Nb4 {[%clk 0:01:46.6]} 34...
c5 {[%clk 0:00:29.9]} 35. Nc2 {[%clk 0:01:42.3]} 35... Rxa2 {[%clk 0:00:29]} 36.
b3 {[%clk 0:01:33.5]} 36... c4 {[%clk 0:00:28.8]} 37. bxc4 {[%clk 0:01:22.4]}
37... bxc4 {[%clk 0:00:29.7]} 38. Ne3 {[%clk 0:01:23]} 38... c3 {[%clk
0:00:25.9]} 39. Nf5+ {[%clk 0:01:07.6]} 39... Kf8 {[%clk 0:00:24.7]} 40. Nd6
{[%clk 0:00:59.9]} 40... Rc7 {[%clk 0:00:21.1]} 41. Rf2 {[%clk 0:00:58.2]} 41...
Ne7 {[%clk 0:00:19.9]} 42. Rxa2 {[%clk 0:00:55.8]} 1-0

[Event "*** SCC Grand Prix: Titled Tuesday Blitz"]
[Site "Chess.com"]
[Date "2020.06.09"]
[Round "1"]
[White "GoValya"]
[Black "szachuspl"]
[Result "0-1"]
[WhiteElo "2180"]
[BlackElo "2552"]
[TimeControl "180+1"]
[EndTime "9:06:39 PDT"]
[Termination "szachuspl won by checkmate"]

1. d4 {[%clk 0:02:58.6]} 1... Nf6 {[%clk 0:02:53.4]} 2. Nf3 {[%clk 0:02:57.6]}
2... g6 {[%clk 0:02:53.1]} 3. c4 {[%clk 0:02:56.7]} 3... Bg7 {[%clk 0:02:53.4]}
4. Nc3 {[%clk 0:02:55.3]} 4... O-O {[%clk 0:02:53.6]} 5. e4 {[%clk 0:02:54.9]}
5... d6 {[%clk 0:02:53.1]} 6. Be2 {[%clk 0:02:52.7]} 6... e5 {[%clk 0:02:50.2]}
7. O-O {[%clk 0:02:51.3]} 7... Na6 {[%clk 0:02:50.1]} 8. Bg5 {[%clk 0:02:43.1]}
8... h6 {[%clk 0:02:49.4]} 9. Bxf6 {[%clk 0:02:41.8]} 9... Bxf6 {[%clk
0:02:44.9]} 10. Nd5 {[%clk 0:02:40.6]} 10... Bg7 {[%clk 0:02:43.5]} 11. dxe5
{[%clk 0:02:34.1]} 11... dxe5 {[%clk 0:02:38.3]} 12. Qc2 {[%clk 0:02:21]} 12...
c6 {[%clk 0:02:38.2]} 13. Ne3 {[%clk 0:02:20.3]} 13... Qe7 {[%clk 0:02:36.8]}
14. a3 {[%clk 0:02:18.4]} 14... Nc5 {[%clk 0:02:33.4]} 15. b4 {[%clk 0:02:11.7]}
15... Ne6 {[%clk 0:02:33.1]} 16. b5 {[%clk 0:02:08.5]} 16... Re8 {[%clk
0:02:23.8]} 17. a4 {[%clk 0:02:06.2]} 17... Nd4 {[%clk 0:02:23.7]} 18. Qb2
{[%clk 0:01:59.5]} 18... Be6 {[%clk 0:02:18.2]} 19. Rfd1 {[%clk 0:01:41.3]}
19... Rad8 {[%clk 0:02:11.4]} 20. h3 {[%clk 0:01:13.4]} 20... Qc5 {[%clk
0:02:08.9]} 21. Rac1 {[%clk 0:01:09.7]} 21... Bc8 {[%clk 0:01:58]} 22. Ne1
{[%clk 0:00:55.9]} 22... f5 {[%clk 0:01:48.7]} 23. Nd3 {[%clk 0:00:54.2]} 23...
Qe7 {[%clk 0:01:48.7]} 24. exf5 {[%clk 0:00:50.2]} 24... gxf5 {[%clk 0:01:48.7]}
25. Qa2 {[%clk 0:00:48]} 25... f4 {[%clk 0:01:39.7]} 26. Ng4 {[%clk 0:00:41.8]}
26... c5 {[%clk 0:01:26.2]} 27. Bf1 {[%clk 0:00:33.2]} 27... Qg5 {[%clk
0:01:07.9]} 28. f3 {[%clk 0:00:30]} 28... h5 {[%clk 0:01:07.2]} 29. Ngf2 {[%clk
0:00:28.3]} 29... Nf5 {[%clk 0:01:05.2]} 30. Ne4 {[%clk 0:00:26.8]} 30... Qg6
{[%clk 0:01:05.1]} 31. Ndxc5 {[%clk 0:00:25.1]} 31... Ne3 {[%clk 0:01:00.6]} 32.
Rxd8 {[%clk 0:00:23.3]} 32... Rxd8 {[%clk 0:01:00.5]} 33. Nb3 {[%clk 0:00:20]}
33... Bf5 {[%clk 0:00:59.6]} 34. Nbd2 {[%clk 0:00:18]} 34... Kh8 {[%clk
0:00:57.5]} 35. c5 {[%clk 0:00:17.3]} 35... Bxh3 {[%clk 0:00:55.6]} 36. c6
{[%clk 0:00:16.1]} 36... Bxg2 {[%clk 0:00:54.9]} 37. Kf2 {[%clk 0:00:15.4]}
37... Bxf1 {[%clk 0:00:52.8]} 38. c7 {[%clk 0:00:08.7]} 38... Qg2+ {[%clk
0:00:51.1]} 39. Ke1 {[%clk 0:00:08.7]} 39... Qe2# {[%clk 0:00:51.1]} 0-1

[Event "*** SCC Grand Prix: Titled Tuesday Blitz"]
[Site "Chess.com"]
[Date "2020.06.09"]
[Round "1"]
[White "Iball95"]
[Black "MNyuyu"]
[Result "1-0"]
[WhiteElo "2690"]
[BlackElo "2358"]
[TimeControl "180+1"]
[EndTime "9:06:41 PDT"]
[Termination "Iball95 won by resignation"]

1. d4 {[%clk 0:03:00.6]} 1... d5 {[%clk 0:02:59.8]} 2. Nc3 {[%clk 0:03:00.8]}
2... e6 {[%clk 0:03:00]} 3. Bf4 {[%clk 0:03:01.2]} 3... Nf6 {[%clk 0:02:59.6]}
4. e3 {[%clk 0:02:59.2]} 4... Bb4 {[%clk 0:02:59.1]} 5. Ne2 {[%clk 0:02:55]}
5... c5 {[%clk 0:02:57.9]} 6. a3 {[%clk 0:02:54.2]} 6... Bxc3+ {[%clk
0:02:55.3]} 7. Nxc3 {[%clk 0:02:55.1]} 7... cxd4 {[%clk 0:02:53.9]} 8. exd4
{[%clk 0:02:56]} 8... O-O {[%clk 0:02:51.4]} 9. Qf3 {[%clk 0:02:54.4]} 9... Nc6
{[%clk 0:02:49.9]} 10. O-O-O {[%clk 0:02:53]} 10... Bd7 {[%clk 0:02:44.8]} 11.
g4 {[%clk 0:02:49.5]} 11... Ne7 {[%clk 0:02:41.1]} 12. h4 {[%clk 0:02:48.1]}
12... Ng6 {[%clk 0:02:39.6]} 13. Bd6 {[%clk 0:02:40.7]} 13... Re8 {[%clk
0:02:33.3]} 14. h5 {[%clk 0:02:40.9]} 14... Nf8 {[%clk 0:02:31.1]} 15. g5 {[%clk
0:02:27.2]} 15... Ne4 {[%clk 0:02:30.1]} 16. Nxe4 {[%clk 0:02:27.5]} 16... dxe4
{[%clk 0:02:29.6]} 17. Qf4 {[%clk 0:02:27.8]} 17... Qa5 {[%clk 0:02:19.3]} 18.
Be5 {[%clk 0:02:20.3]} 18... Rac8 {[%clk 0:02:13.8]} 19. Kb1 {[%clk 0:02:07.1]}
19... Ba4 {[%clk 0:02:06.6]} 20. Rc1 {[%clk 0:02:05.8]} 20... Qd5 {[%clk
0:01:46.2]} 21. Bxg7 {[%clk 0:02:01.3]} 21... Qf5 {[%clk 0:01:40.3]} 22. Be5
{[%clk 0:01:54.1]} 22... Qxf4 {[%clk 0:01:37.5]} 23. Bxf4 {[%clk 0:01:55]} 23...
Nd7 {[%clk 0:01:32.7]} 24. Bh3 {[%clk 0:01:49]} 24... Nb6 {[%clk 0:01:30.4]} 25.
Rhg1 {[%clk 0:01:43.9]} 25... Nd5 {[%clk 0:01:29.1]} 26. Be3 {[%clk 0:01:39]}
26... Rc6 {[%clk 0:01:22.8]} 27. b3 {[%clk 0:01:38.3]} 27... Nc3+ {[%clk
0:01:19]} 28. Kb2 {[%clk 0:01:38.2]} 28... Ne2 {[%clk 0:01:18.4]} 29. bxa4
{[%clk 0:01:36.9]} 29... Nxg1 {[%clk 0:01:17.2]} 30. Rxg1 {[%clk 0:01:37.8]}
30... Rec8 {[%clk 0:01:17.1]} 31. Rc1 {[%clk 0:01:35.8]} 31... Rb6+ {[%clk
0:01:16.4]} 32. Ka2 {[%clk 0:01:35.2]} 32... Rbc6 {[%clk 0:01:16.3]} 33. Bg2
{[%clk 0:01:30.2]} 33... Rxc2+ {[%clk 0:01:15.6]} 34. Rxc2 {[%clk 0:01:31.1]}
34... Rxc2+ {[%clk 0:01:15.1]} 35. Kb3 {[%clk 0:01:31.6]} 35... Rc7 {[%clk
0:01:13.2]} 36. Bxe4 {[%clk 0:01:31.7]} 36... Kg7 {[%clk 0:01:12.2]} 37. d5
{[%clk 0:01:18.8]} 37... exd5 {[%clk 0:01:10.9]} 38. Bxd5 {[%clk 0:01:19.7]}
38... Kf8 {[%clk 0:01:07.3]} 39. Bxa7 {[%clk 0:01:17.6]} 39... b5 {[%clk
0:01:04.3]} 40. Be3 {[%clk 0:01:13.8]} 40... bxa4+ {[%clk 0:01:03.5]} 41. Kxa4
{[%clk 0:01:14.7]} 41... Ke7 {[%clk 0:01:01.1]} 42. Kb5 {[%clk 0:01:14.6]} 42...
Rc2 {[%clk 0:00:58.2]} 43. a4 {[%clk 0:01:14.5]} 43... Kd6 {[%clk 0:00:57.6]}
44. Bxf7 {[%clk 0:01:14]} 44... Rb2+ {[%clk 0:00:56.9]} 45. Kc4 {[%clk
0:01:14.2]} 45... Ra2 {[%clk 0:00:55.8]} 46. Kb3 {[%clk 0:01:13.1]} 46... Re2
{[%clk 0:00:52.1]} 47. g6 {[%clk 0:01:12.7]} 47... hxg6 {[%clk 0:00:51.3]} 48.
hxg6 {[%clk 0:01:13.6]} 48... Ke7 {[%clk 0:00:51.4]} 49. a5 {[%clk 0:01:13.7]}
49... Re1 {[%clk 0:00:50.7]} 50. a6 {[%clk 0:01:13.6]} 50... Ra1 {[%clk
0:00:49.9]} 51. a7 {[%clk 0:01:13.6]} 51... Kf8 {[%clk 0:00:48.4]} 52. Bd5
{[%clk 0:01:13.1]} 52... Ke7 {[%clk 0:00:47]} 53. a8=Q {[%clk 0:01:13.1]} 53...
Rxa8 {[%clk 0:00:45.9]} 54. Bxa8 {[%clk 0:01:14]} 1-0

[Event "*** SCC Grand Prix: Titled Tuesday Blitz"]
[Site "Chess.com"]
[Date "2020.06.09"]
[Round "1"]
[White "ShapkinAnatoliy"]
[Black "bratkoo"]
[Result "1-0"]
[WhiteElo "2667"]
[BlackElo "2344"]
[TimeControl "180+1"]
[EndTime "9:06:42 PDT"]
[Termination "ShapkinAnatoliy won by checkmate"]

1. d4 {[%clk 0:02:58.2]} 1... e6 {[%clk 0:02:59.9]} 2. c4 {[%clk 0:02:51.7]}
2... d5 {[%clk 0:03:00.8]} 3. Nf3 {[%clk 0:02:51.1]} 3... c6 {[%clk 0:02:59.5]}
4. Nbd2 {[%clk 0:02:50.2]} 4... Bd6 {[%clk 0:02:58]} 5. e4 {[%clk 0:02:39.4]}
5... Ne7 {[%clk 0:02:56.9]} 6. Bd3 {[%clk 0:02:36]} 6... Nd7 {[%clk 0:02:42.6]}
7. O-O {[%clk 0:02:33.3]} 7... Bc7 {[%clk 0:02:27.4]} 8. Re1 {[%clk 0:02:21.1]}
8... O-O {[%clk 0:02:21.2]} 9. e5 {[%clk 0:02:15.2]} 9... h6 {[%clk 0:01:53.6]}
10. cxd5 {[%clk 0:01:55.5]} 10... Nxd5 {[%clk 0:01:43.5]} 11. Ne4 {[%clk
0:01:55]} 11... b6 {[%clk 0:01:35.4]} 12. Bd2 {[%clk 0:01:51.5]} 12... Bb7
{[%clk 0:01:35.6]} 13. Qe2 {[%clk 0:01:50.7]} 13... Qe7 {[%clk 0:01:35.2]} 14.
Ng3 {[%clk 0:01:36.4]} 14... Rfd8 {[%clk 0:01:33.3]} 15. Qe4 {[%clk 0:01:33.1]}
15... Nf8 {[%clk 0:01:31.1]} 16. Nh5 {[%clk 0:01:28]} 16... c5 {[%clk
0:01:20.4]} 17. Qg4 {[%clk 0:00:52.3]} 17... f5 {[%clk 0:01:20.1]} 18. exf6
{[%clk 0:00:39.5]} 18... Nxf6 {[%clk 0:01:19.6]} 19. Nxf6+ {[%clk 0:00:24.3]}
19... Qxf6 {[%clk 0:01:20.5]} 20. Bc4 {[%clk 0:00:06.8]} 20... Bxf3 {[%clk
0:01:19.7]} 21. Qxf3 {[%clk 0:00:06.3]} 21... Qxf3 {[%clk 0:01:19.5]} 22. gxf3
{[%clk 0:00:07.2]} 22... Rxd4 {[%clk 0:01:19.9]} 23. Bxe6+ {[%clk 0:00:07.2]}
23... Nxe6 {[%clk 0:01:19.6]} 24. Bc3 {[%clk 0:00:07.4]} 24... Kf7 {[%clk
0:01:15.4]} 25. Bxd4 {[%clk 0:00:07.3]} 25... Nxd4 {[%clk 0:01:16.3]} 26. Kg2
{[%clk 0:00:07.4]} 26... Rd8 {[%clk 0:01:15.2]} 27. Rad1 {[%clk 0:00:07.1]}
27... Rd5 {[%clk 0:01:14.9]} 28. Re4 {[%clk 0:00:06.8]} 28... Rg5+ {[%clk
0:01:13.9]} 29. Rg4 {[%clk 0:00:07.3]} 29... Rf5 {[%clk 0:01:14.4]} 30. b3
{[%clk 0:00:06.7]} 30... Nxf3 {[%clk 0:01:13.4]} 31. Rd7+ {[%clk 0:00:05.9]}
31... Ke6 {[%clk 0:01:13.3]} 32. Rxc7 {[%clk 0:00:06]} 32... g5 {[%clk
0:01:13.5]} 33. Re4+ {[%clk 0:00:05.8]} 33... Ne5 {[%clk 0:01:13.2]} 34. Rxa7
{[%clk 0:00:04.9]} 34... Kd5 {[%clk 0:01:13.5]} 35. Re1 {[%clk 0:00:04.9]} 35...
Rf6 {[%clk 0:01:13.5]} 36. Rd1+ {[%clk 0:00:05.4]} 36... Kc6 {[%clk 0:01:13.4]}
37. Re7 {[%clk 0:00:05.8]} 37... Ng4 {[%clk 0:01:12.8]} 38. Re2 {[%clk
0:00:04.4]} 38... h5 {[%clk 0:01:10.2]} 39. h3 {[%clk 0:00:04.8]} 39... Nh6
{[%clk 0:01:10]} 40. Rde1 {[%clk 0:00:05.4]} 40... Kd5 {[%clk 0:01:09.1]} 41.
Re5+ {[%clk 0:00:05.7]} 41... Kd4 {[%clk 0:01:09.5]} 42. Rxg5 {[%clk 0:00:06.2]}
42... Nf5 {[%clk 0:01:09.3]} 43. Rd1+ {[%clk 0:00:06.5]} 43... Ke4 {[%clk
0:01:09.1]} 44. Rxh5 {[%clk 0:00:07.1]} 44... Rg6+ {[%clk 0:01:09.6]} 45. Kf1
{[%clk 0:00:07.5]} 45... Nd4 {[%clk 0:01:09.9]} 46. Rh4+ {[%clk 0:00:07.2]}
46... Kf3 {[%clk 0:01:10.1]} 47. Rd3# {[%clk 0:00:07.4]} 1-0